bitfinex-derivatives/quotes_SOLF0:USTF0_20240911
["timestamp","ask_amount","ask_price","bid_price","bid_amount"]
[1726072327045,26.65597752,131.95,131.84,20.02]
[1726072327342,20.02,131.93,131.84,20.02]
[1726072328436,26.65597752,131.95,131.84,20.02]
[1726072328645,3.7901,131.92,131.89,3.7908]
[1726072328946,3.7901,131.92,131.84,20.02]
[1726072329152,3.7901,131.92,131.88,3.7909]
[1726072329749,3.7901,131.92,131.89,3.7908]
[1726072330139,3.7898,131.93,131.89,3.7908]
[1726072330341,3.7898,131.93,131.9,3.7905]
[1726072330537,1.3317,131.95,131.88,20.02]
[1726072330834,1.3065,131.98,131.9,20.02]
[1726072331246,1.3065,131.98,131.9,26.60750979]
[1726072331553,5.095,131.98,131.9,26.60750979]
[1726072331751,20.02,132.0,131.95,3.789]
[1726072332145,3.7881,131.99,131.95,3.789]
[1726072332442,20.02,131.96,131.89,1.3533]
[1726072332645,3.7894,131.94,131.89,1.3533]
[1726072332843,3.71977563,131.95,131.89,1.3533]
[1726072333041,20.02,131.96,131.86,20.02]
[1726072333042,3.7897,131.93,131.86,20.02]
[1726072333339,1.3062,131.95,131.86,20.02]
[1726072333742,5.0955,131.95,131.86,20.02]
[1726072333940,8.84332081,131.95,131.9,3.7903]
[1726072334246,5.05402081,131.95,131.86,20.02]
[1726072334647,3.79,131.92,131.86,20.02]
[1726072335046,5.05402081,131.95,131.86,20.02]
[1726072335249,5.05402081,131.95,131.89,3.7907]
[1726072335451,3.7899,131.93,131.89,3.7907]
[1726072335647,3.7899,131.93,131.86,20.02]
[1726072336157,1.3062,131.95,131.86,20.02]
[1726072336343,1.3062,131.95,131.88,20.02]
[1726072336650,1.3062,131.95,131.91,3.79]
[1726072336651,5.0955,131.95,131.91,3.79]
[1726072337147,1.3062,131.95,131.91,3.79]
[1726072337355,1.3065,131.97,131.89,20.02]
[1726072337552,1.3065,131.97,131.9,1.3106]
[1726072337851,3.789,131.96,131.93,3.7896]
[1726072338245,20.02,131.98,131.93,3.7896]
[1726072338450,3.7884,131.98,131.94,3.7893]
[1726072339343,3.7884,131.98,131.95,3.7891]
[1726072339549,3.788,131.99,131.95,3.7891]
[1726072339749,20.02,132.02,131.91,21.455]
[1726072339953,1.2962,132.03,131.93,20.02]
[1726072340151,20.02,132.02,131.93,20.02]
[1726072340554,3.7881,131.99,131.95,3.7889]
[1726072340753,20.02,132.02,131.92,20.02]
[1726072341244,3.7881,131.99,131.95,3.7891]
[1726072341449,20.02,132.02,131.92,20.02]
[1726072342158,3.788,131.99,131.95,3.7889]
[1726072342359,20.02,132.02,131.92,20.02]
[1726072342752,3.7877,132.0,131.96,3.7886]
[1726072343056,2.703,132.04,131.94,20.02]
[1726072343057,21.4499,132.04,131.94,20.02]
[1726072343249,20.02,132.06,131.98,20.02]
[1726072343451,230.6345,132.11,131.99,4.1084]
[1726072343452,20.02,132.08,131.99,4.1084]
[1726072344060,3.7858,132.07,132.03,3.7866]
[1726072344353,21.4036,132.1,131.99,24.1284]
[1726072345656,3.7852,132.09,132.05,3.786]
[1726072346160,21.4036,132.1,132.06,3.7859]
[1726072346161,3.7849,132.1,132.06,3.7859]
[1726072346464,3.7849,132.1,132.01,31.98]
[1726072346465,31.98,132.14,132.03,31.98]
[1726072346763,3.7839,132.13,132.09,3.785]
[1726072346965,3.78360978,132.13,132.03,3.84192986]
[1726072347163,31.98,132.07,131.99,1.4284]
[1726072347363,35.7659,132.07,132.02,3.7868]
[1726072347564,31.98,132.07,131.99,1.4284]
[1726072347755,35.7657,132.07,132.02,3.787]
[1726072348354,35.7657,132.07,131.99,2.8381]
[1726072348557,35.7657,132.07,132.0,1.3068]
[1726072348958,35.7657,132.07,132.02,3.7869]
[1726072350357,3.7854,132.08,132.0,1.3068]
[1726072351362,3.7854,132.08,132.03,3.7866]
[1726072351567,3.7859,132.07,132.03,3.7866]
[1726072351770,31.98,132.09,132.0,1.3068]
[1726072353063,3.7857,132.07,132.03,3.7868]
[1726072353762,3.7855,132.08,132.04,3.7865]
[1726072354263,31.98,132.09,132.04,3.7865]
[1726072354489,3.7855,132.08,132.04,3.7865]
[1726072354665,3.7855,132.08,132.0,1.3068]
[1726072354865,3.7855,132.08,132.04,3.7863]
[1726072355262,3.7855,132.08,132.0,1.3068]
[1726072355568,3.7855,132.08,132.04,3.7863]
[1726072356564,31.98,132.09,132.0,1.3068]
[1726072357166,31.98,132.07,132.0,1.3068]
[1726072357470,35.71428268,132.07,132.0,1.3068]
[1726072357872,35.71428268,132.07,132.01,3.7873]
[1726072358366,3.7864,132.05,132.01,3.7873]
[1726072358568,35.71428268,132.07,132.0,5.0944]
[1726072358773,3.7867,132.04,132.0,1.3068]
[1726072359064,31.98,132.07,132.0,1.3068]
[1726072359265,31.98,132.07,132.02,3.7869]
[1726072359864,3.7864,132.05,132.02,3.7869]
[1726072360661,31.98,132.07,132.03,3.7868]
[1726072360865,31.98,132.07,132.0,1.3068]
[1726072361172,3.7868,132.03,132.0,3.7875]
[1726072361468,3.843555,132.06,132.0,3.7875]
[1726072361672,33.3316,132.07,132.0,3.7875]
[1726072362059,33.3316,132.07,131.99,2.8381]
[1726072362365,37.056985,132.07,131.99,2.8381]
[1726072362765,37.056985,132.07,132.01,3.7872]
[1726072362766,3.7865,132.04,132.01,3.7872]
[1726072363065,37.056985,132.07,131.99,2.8381]
[1726072363277,3.7863,132.05,132.01,3.7872]
[1726072363569,37.056985,132.07,131.99,2.8381]
[1726072363770,5.076985,132.07,131.99,2.8381]
[1726072363971,3.786,132.06,131.99,2.8381]
[1726072364171,5.076985,132.07,131.99,2.8381]
[1726072364172,37.056985,132.07,131.99,2.8381]
[1726072365367,31.98,132.05,131.94,1.3407]
[1726072365672,31.98,132.05,131.93,31.98]
[1726072366081,31.98,132.03,131.92,4.163]
[1726072366372,2.6827,132.02,131.92,4.163]
[1726072366675,3.7882,131.99,131.95,3.7889]
[1726072367172,3.7884,131.98,131.94,3.7893]
[1726072367374,31.98,132.0,131.92,1.412]
[1726072367864,3.7883,131.98,131.94,3.7891]
[1726072368071,31.98,132.0,131.92,1.412]
[1726072368370,20.02,132.0,131.92,1.412]
[1726072368778,23.80790175,132.0,131.92,1.412]
[1726072369072,2.6827,132.02,131.92,1.412]
[1726072369073,20.02,131.98,131.92,1.412]
[1726072369276,3.7886,131.97,131.93,3.7896]
[1726072369490,20.02,131.98,131.89,20.02]
[1726072369677,3.7896,131.94,131.9,3.7904]
[1726072369968,20.02,131.96,131.88,1.4019]
[1726072370174,3.7897,131.93,131.89,3.7908]
[1726072370569,2.766,131.95,131.88,1.4019]
[1726072371076,3.7895,131.94,131.9,3.7903]
[1726072371271,2.766,131.95,131.88,1.4019]
[1726072372075,6.5552,131.95,131.9,3.7905]
[1726072372463,6.5552,131.95,131.91,3.7902]
[1726072373071,3.7895,131.94,131.9,3.7905]
[1726072374571,3.7895,131.94,131.91,3.7902]
[1726072375071,3.7895,131.94,131.88,1.4019]
[1726072375072,3.7895,131.94,131.9,3.7904]
[1726072375878,3.7897,131.93,131.9,3.7904]
[1726072376079,20.02,131.93,131.85,20.02]
[1726072376777,3.79,131.92,131.85,20.02]
[1726072377680,23.8097,131.93,131.85,20.02]
[1726072377876,23.8097,131.93,131.89,3.7906]
[1726072378374,2.766,131.95,131.9,3.7903]
[1726072379184,3.7895,131.94,131.9,3.7903]
[1726072379384,3.7895,131.94,131.87,20.02]
[1726072380477,3.7897,131.93,131.9,3.7903]
[1726072380673,2.766,131.95,131.87,20.02]
[1726072381182,3.7895,131.94,131.9,3.7905]
[1726072381988,2.766,131.95,131.92,3.7897]
[1726072382587,2.766,131.95,131.93,3.7896]
[1726072383088,3.7889,131.96,131.93,3.7896]
[1726072383274,25.02926121,131.98,131.94,3.7893]
[1726072383275,3.7886,131.97,131.94,3.7893]
[1726072384491,3.7888,131.96,131.94,3.7893]
[1726072385285,3.7888,131.96,131.93,3.7895]
[1726072385683,3.7888,131.96,131.89,21.3398]
[1726072386080,3.7892,131.95,131.89,21.3398]
[1726072386280,21.2957,131.98,131.89,21.3398]
[1726072386785,3.7894,131.94,131.91,3.7901]
[1726072387278,3.7897,131.93,131.91,3.7901]
[1726072387486,20.02,131.96,131.91,3.7901]
[1726072388089,3.7895,131.94,131.91,3.7901]
[1726072388287,20.02,131.96,131.89,3.7907]
[1726072388589,3.7902,131.91,131.88,1.3714]
[1726072389183,3.7901,131.92,131.88,1.3714]
[1726072389482,2.7453,131.95,131.88,1.3714]
[1726072389681,1.2757,131.98,131.88,1.3714]
[1726072389887,21.4324,131.99,131.91,20.02]
[1726072390187,21.4324,131.99,131.91,23.8724528]
[1726072390493,21.4324,131.99,131.91,20.02]
[1726072390686,21.4324,131.99,131.91,23.78014248]
[1726072390997,1.4124,131.99,131.91,23.78014248]
[1726072391290,1.4124,131.99,131.95,3.7889]
[1726072391685,3.7884,131.98,131.95,3.7889]
[1726072392688,3.7884,131.98,131.91,20.02]
[1726072392994,3.7885,131.97,131.94,3.7892]
[1726072393294,21.4324,131.99,131.93,3.7896]
[1726072393493,21.4324,131.99,131.9,1.377]
[1726072393689,20.02,131.97,131.9,1.377]
[1726072394089,20.02,131.97,131.89,21.3338]
[1726072394499,3.7887,131.97,131.94,3.7892]
[1726072394686,22.7073,131.99,131.89,21.3338]
[1726072395295,3.789,131.96,131.93,3.7894]
[1726072397087,3.7892,131.95,131.92,3.7899]
[1726072397289,20.02,131.97,131.89,21.3338]
[1726072398597,3.7892,131.95,131.91,3.7901]
[1726072399294,3.7895,131.94,131.9,3.7904]
[1726072399503,20.02,131.97,131.9,3.7904]
[1726072399504,1.3696,131.96,131.9,3.7904]
[1726072399701,20.02,131.95,131.88,1.3714]
[1726072400294,3.7897,131.93,131.89,3.7907]
[1726072400702,3.7897,131.93,131.9,3.7905]
[1726072402306,3.7899,131.92,131.89,3.7907]
[1726072402610,20.02,131.95,131.88,1.3714]
[1726072402794,20.02,131.93,131.85,1.2946]
[1726072402991,23.76706194,131.92,131.87,3.7914]
[1726072403190,20.02,131.93,131.84,3.83008567]
[1726072403598,3.7904,131.91,131.88,3.7909]
[1726072403801,1.3206,131.94,131.85,20.02]
[1726072404000,3.7899,131.92,131.89,3.7906]
[1726072404199,3.7899,131.92,131.86,1.4102]
[1726072404403,3.77702081,131.93,131.86,1.4102]
[1726072404793,21.3406,131.94,131.86,1.4102]
[1726072405203,3.7901,131.92,131.89,3.7906]
[1726072405601,1.3206,131.94,131.86,1.4102]
[1726072406501,5.1102,131.94,131.87,20.02]
[1726072406701,3.7896,131.94,131.87,22.7196]
[1726072406895,1.3696,131.96,131.87,22.7196]
[1726072407200,3.7898,131.93,131.87,22.7196]
[1726072407711,3.7898,131.93,131.9,3.7903]
[1726072408605,3.7895,131.94,131.91,3.7902]
[1726072410105,3.7897,131.93,131.9,3.7904]
[1726072412699,3.79,131.92,131.89,3.7907]
[1726072413910,3.72687932,131.93,131.88,3.791]
[1726072414118,20.02,131.95,131.86,1.4102]
[1726072414301,3.7901,131.92,131.89,3.7908]
[1726072414713,20.02,131.95,131.86,1.4102]
[1726072414909,3.7898,131.93,131.89,3.7906]
[1726072415820,3.7895,131.94,131.87,20.02]
[1726072416014,1.3696,131.96,131.87,20.02]
[1726072417013,3.7892,131.95,131.87,20.02]
[1726072417721,1.3696,131.96,131.87,20.02]
[1726072417922,20.02,131.95,131.86,4.1099]
[1726072418420,3.7902,131.92,131.86,4.1099]
[1726072418820,3.7902,131.92,131.88,3.7908]
[1726072419027,3.7902,131.92,131.86,4.1099]
[1726072419918,3.7902,131.92,131.89,3.7906]
[1726072420119,3.7902,131.92,131.86,4.1099]
[1726072420120,23.82715856,131.93,131.86,1.4102]
[1726072420420,21.2954,131.94,131.84,3.7921]
[1726072420617,3.7912,131.88,131.81,6.51869934]
[1726072420920,1.3315,131.92,131.88,3.7911]
[1726072421122,1.3315,131.92,131.82,1.3588]
[1726072421322,20.02,131.9,131.82,1.3588]
[1726072421725,20.02,131.9,131.84,3.792]
[1726072422124,20.02,131.9,131.82,1.3588]
[1726072422325,20.02,131.9,131.82,5.1514]
[1726072422625,3.7914,131.87,131.82,1.3588]
[1726072423014,3.7914,131.87,131.83,3.7924]
[1726072423218,3.7914,131.87,131.82,1.3588]
[1726072423423,3.7914,131.87,131.83,3.7924]
[1726072424427,20.02,131.9,131.82,1.3588]
[1726072424428,3.7917,131.86,131.82,5.1515]
[1726072425124,3.7917,131.86,131.82,1.3588]
[1726072425426,3.7917,131.86,131.82,5.1515]
[1726072426117,3.792,131.85,131.82,5.1515]
[1726072426727,3.7918,131.86,131.82,5.1515]
[1726072427522,3.792,131.85,131.82,5.1515]
[1726072428033,20.02,131.88,131.82,1.3588]
[1726072428326,20.02,131.88,131.81,3.7931]
[1726072428724,3.7923,131.84,131.81,3.7931]
[1726072428932,20.02,131.88,131.82,3.7927]
[1726072429425,20.02,131.88,131.81,3.793]
[1726072429426,3.7923,131.84,131.81,3.793]
[1726072429624,3.75351278,131.86,131.81,3.793]
[1726072430129,21.3586,131.87,131.81,3.793]
[1726072430327,20.02,131.84,131.77,1.3575]
[1726072430628,20.02,131.82,131.72,3.87071523]
[1726072430821,20.02,131.8,131.74,3.795]
[1726072431022,20.02,131.8,131.72,5.30451523]
[1726072431222,20.02,131.8,131.72,6.72181523]
[1726072431626,3.7937,131.79,131.72,6.72181523]
[1726072432223,3.7937,131.79,131.75,3.7946]
[1726072432830,3.7935,131.8,131.72,6.72181523]
[1726072433127,3.7935,131.8,131.73,20.02]
[1726072434130,3.7937,131.79,131.73,20.02]
[1726072435331,3.7937,131.79,131.72,6.72181523]
[1726072435535,3.7937,131.79,131.75,3.7947]
[1726072437935,3.7934,131.8,131.76,3.7944]
[1726072438332,1.3386,131.81,131.76,3.7944]
[1726072438938,1.3963,131.83,131.73,20.02]
[1726072439137,3.7934,131.8,131.73,20.02]
[1726072439328,20.02,131.82,131.76,3.7944]
[1726072439725,3.7939,131.79,131.76,3.7944]
[1726072439931,3.7939,131.79,131.75,3.7947]
[1726072440132,3.7939,131.79,131.73,1.3973]
[1726072440337,3.7939,131.79,131.76,3.7944]
[1726072440642,3.7939,131.79,131.73,1.3973]
[1726072440643,20.02,131.82,131.73,21.4173]
[1726072440935,20.02,131.82,131.77,3.7941]
[1726072441140,20.02,131.82,131.73,21.4173]
[1726072441542,1.3963,131.83,131.73,21.4173]
[1726072441842,3.7933,131.81,131.78,3.7938]
[1726072442042,20.02,131.82,131.73,1.3973]
[1726072442238,3.7934,131.8,131.77,3.794]
[1726072442443,20.02,131.82,131.73,1.3973]
[1726072443342,1.3963,131.83,131.74,20.02]
[1726072443530,3.7934,131.81,131.77,3.7941]
[1726072443735,3.7934,131.81,131.74,20.02]
[1726072443936,1.3963,131.83,131.74,20.02]
[1726072444244,23.72192853,131.84,131.74,20.02]
[1726072444245,20.02,131.84,131.74,20.02]
[1726072444444,1.4056,131.85,131.76,20.02]
[1726072444641,3.7927,131.83,131.79,3.7934]
[1726072444851,5.18928231,131.85,131.79,3.7934]
[1726072445547,5.18928231,131.85,131.78,3.7937]
[1726072445748,20.02,131.82,131.73,1.3973]
[1726072445950,3.7939,131.79,131.73,1.3973]
[1726072446248,20.02,131.8,131.76,3.7944]
[1726072446438,3.7933,131.81,131.73,21.4173]
[1726072446841,3.7933,131.81,131.77,3.7941]
[1726072447037,3.7933,131.81,131.73,21.4173]
[1726072448047,3.7933,131.81,131.77,3.7941]
[1726072448248,3.7934,131.8,131.77,3.7941]
[1726072448552,20.02,131.82,131.73,21.4173]
[1726072448850,20.02,131.82,131.77,3.7941]
[1726072449253,20.02,131.82,131.76,3.7944]
[1726072449447,20.02,131.8,131.76,3.7944]
[1726072449846,3.7938,131.79,131.76,3.7944]
[1726072450347,1.4197,131.84,131.73,1.3973]
[1726072450348,20.02,131.78,131.73,1.3973]
[1726072450544,23.8141,131.78,131.73,1.3973]
[1726072451149,23.8141,131.78,131.74,3.795]
[1726072451346,3.7943,131.77,131.73,1.3973]
[1726072451550,20.02,131.78,131.74,3.7951]
[1726072451752,23.814,131.78,131.73,1.3973]
[1726072452153,3.794,131.78,131.73,1.3973]
[1726072452754,3.794,131.78,131.74,3.795]
[1726072453457,20.02,131.8,131.74,3.795]
[1726072453852,3.7942,131.78,131.74,3.795]
[1726072454054,2.8324,131.79,131.74,3.795]
[1726072454255,3.7946,131.76,131.73,3.7953]
[1726072456859,3.7943,131.77,131.71,1.3099]
[1726072457055,2.8324,131.79,131.71,21.3299]
[1726072457255,22.8524,131.79,131.71,21.3299]
[1726072457655,3.7941,131.78,131.74,3.7949]
[1726072458062,3.7941,131.78,131.71,21.3299]
[1726072458761,3.7944,131.77,131.73,3.7951]
[1726072459161,22.8524,131.79,131.71,1.3099]
[1726072459371,22.8524,131.79,131.73,3.7952]
[1726072460053,3.7947,131.76,131.72,3.7956]
[1726072460266,20.02,131.77,131.69,1.412]
[1726072460461,22.8524,131.79,131.69,1.412]
[1726072460769,3.7947,131.76,131.69,1.412]
[1726072460961,22.8524,131.79,131.69,22.8295]
[1726072461153,3.7944,131.77,131.69,22.8295]
[1726072461360,20.02,131.74,131.58,3.8642672]
[1726072461560,20.02,131.74,131.63,20.02]
[1726072461869,20.02,131.72,131.64,2.8144]
[1726072462366,20.02,131.72,131.65,3.7976]
[1726072462367,3.7967,131.69,131.65,3.7976]
[1726072462955,3.7969,131.68,131.64,6.6123]
[1726072463273,3.7969,131.68,131.64,1.4169]
[1726072464862,3.7967,131.69,131.65,3.7977]
[1726072465963,3.7968,131.68,131.65,3.7977]
[1726072466562,3.7967,131.69,131.65,3.7977]
[1726072466764,20.02,131.67,131.61,1.3648]
[1726072467362,5.1343,131.68,131.61,1.3648]
[1726072467973,5.1343,131.68,131.64,3.7978]
[1726072468170,5.1343,131.68,131.61,1.3648]
[1726072468659,5.1343,131.68,131.64,3.7978]
[1726072469664,5.1343,131.68,131.65,3.7976]
[1726072469968,5.1343,131.68,131.61,1.3648]
[1726072470162,5.1343,131.68,131.64,3.7979]
[1726072470875,3.7971,131.67,131.64,3.7979]
[1726072471067,1.3373,131.68,131.65,3.7976]
[1726072471278,1.3373,131.68,131.61,1.3648]
[1726072471469,5.1341,131.68,131.61,1.3648]
[1726072471971,5.1341,131.68,131.65,3.7975]
[1726072471972,1.3373,131.68,131.65,3.7975]
[1726072472674,5.1342,131.68,131.65,3.7975]
[1726072472968,20.02,131.7,131.62,3.80793097]
[1726072473171,20.02,131.7,131.62,1.4361]
[1726072473172,23.8164,131.7,131.62,1.4361]
[1726072473373,20.02,131.7,131.62,6.65647892]
[1726072473573,20.02,131.7,131.62,2.8193]
[1726072473962,3.7968,131.69,131.65,3.7975]
[1726072474570,3.7969,131.68,131.65,3.7975]
[1726072475474,3.7967,131.69,131.66,3.7974]
[1726072475678,3.81932628,131.7,131.62,2.8193]
[1726072475873,20.02,131.71,131.62,6.69910646]
[1726072476271,12.83,131.68,131.62,19.52910646]
[1726072476675,12.83,131.68,131.62,15.6493]
[1726072477078,12.83,131.66,131.62,1.4361]
[1726072477576,12.83,131.66,131.64,3.7978]
[1726072479274,12.83,131.66,131.61,1.3648]
[1726072479471,12.83,131.64,131.61,1.3648]
[1726072479675,12.83,131.64,131.53,7.6022]
[1726072479882,12.83,131.62,131.6,3.799]
[1726072480081,12.83,131.62,131.56,2.7044]
[1726072480281,3.8030839,131.64,131.56,1.3498]
[1726072480579,12.83,131.6,131.56,1.3498]
[1726072481389,12.83,131.6,131.58,3.7996]
[1726072481885,3.7981,131.64,131.56,14.1798]
[1726072482092,12.83,131.63,131.56,14.1798]
[1726072482690,23.8681,131.64,131.56,1.3498]
[1726072483387,23.8681,131.64,131.59,3.7992]
[1726072483583,230.7876,131.72,131.52,20.07]
[1726072483785,20.07,131.6,131.55,3.8004]
[1726072483986,23.95483466,131.6,131.55,3.8004]
[1726072484394,27.75423466,131.6,131.55,3.8004]
[1726072484590,23.95483466,131.6,131.55,3.8004]
[1726072484988,20.07,131.6,131.52,3.8722919]
[1726072485187,20.07,131.6,131.5,20.07]
[1726072485593,23.8694,131.6,131.5,20.07]
[1726072485894,20.07,131.61,131.52,20.07]
[1726072486191,23.869,131.61,131.57,3.8]
[1726072486499,20.07,131.61,131.52,20.07]
[1726072486698,23.8691,131.61,131.52,20.07]
[1726072486894,20.07,131.61,131.52,20.07]
[1726072487197,3.7992,131.6,131.56,3.8001]
[1726072489497,3.7995,131.59,131.56,3.8001]
[1726072490693,3.7995,131.59,131.55,3.8005]
[1726072490994,3.7999,131.58,131.52,20.07]
[1726072491186,3.7999,131.58,131.5,23.93413114]
[1726072491389,3.7999,131.58,131.5,20.07]
[1726072491790,3.7999,131.58,131.54,3.8006]
[1726072491992,3.8002,131.57,131.5,23.85240705]
[1726072492396,3.8002,131.57,131.53,3.801]
[1726072492595,3.8002,131.57,131.5,23.85240705]
[1726072492795,20.07,131.59,131.5,23.85240705]
[1726072493398,3.8,131.57,131.5,23.85240705]
[1726072494095,3.7999,131.58,131.54,3.8007]
[1726072494798,5.14535258,131.62,131.53,20.07]
[1726072495095,5.14535258,131.62,131.5,3.78240705]
[1726072495096,1.423,131.62,131.55,20.07]
[1726072495399,1.423,131.62,131.54,1.3984]
[1726072496393,21.493,131.62,131.54,1.3984]
[1726072496902,20.07,131.6,131.54,1.3984]
[1726072497200,3.7995,131.59,131.54,1.3984]
[1726072497400,20.07,131.6,131.54,1.3984]
[1726072497698,23.8693,131.6,131.56,3.8001]
[1726072498597,3.7989,131.61,131.54,1.3984]
[1726072499102,3.7989,131.61,131.57,3.7999]
[1726072499404,3.7992,131.6,131.54,1.3984]
[1726072499898,5.2218,131.62,131.54,1.3984]
[1726072500101,21.493,131.62,131.56,3.8002]
[1726072500297,21.493,131.62,131.54,1.3984]
[1726072500798,21.493,131.62,131.56,3.8002]
[1726072500997,3.7992,131.6,131.56,3.8002]
[1726072501196,21.493,131.62,131.55,3.8005]
[1726072501392,23.8693,131.6,131.54,1.3984]
[1726072501605,20.07,131.61,131.54,1.3984]
[1726072501800,1.423,131.62,131.58,3.7996]
[1726072502001,5.2218,131.62,131.54,4.0618]
[1726072502194,21.4949,131.63,131.59,3.7993]
[1726072502502,25.2934,131.63,131.59,3.7993]
[1726072502707,21.4949,131.63,131.59,3.7993]
[1726072503010,21.4949,131.63,131.55,20.07]
[1726072503405,21.4949,131.63,131.57,3.7998]
[1726072503705,21.4949,131.63,131.54,4.0618]
[1726072503897,3.7993,131.6,131.54,4.0618]
[1726072504097,20.07,131.62,131.54,4.0618]
[1726072505406,1.4249,131.63,131.54,4.0618]
[1726072505710,1.4249,131.63,131.55,20.07]
[1726072506009,5.2233,131.63,131.55,20.07]
[1726072506410,1.4249,131.63,131.6,3.799]
[1726072506909,5.2233,131.63,131.59,3.7993]
[1726072507209,5.2233,131.63,131.55,20.07]
[1726072507411,1.4249,131.63,131.6,3.799]
[1726072508005,1.4249,131.63,131.59,3.7993]
[1726072508513,1.4249,131.63,131.6,3.799]
[1726072509305,5.2233,131.63,131.6,3.799]
[1726072509506,1.4249,131.63,131.59,3.7993]
[1726072510006,1.4249,131.63,131.6,3.7991]
[1726072510214,21.5043,131.65,131.57,23.88630779]
[1726072510713,25.21887644,131.65,131.57,23.88630779]
[1726072512613,1.4343,131.65,131.58,20.07]
[1726072512809,1.4343,131.65,131.59,1.3707]
[1726072513315,5.2321,131.65,131.61,3.7987]
[1726072513510,1.4343,131.65,131.59,1.3707]
[1726072513711,1.4343,131.65,131.62,3.7985]
[1726072513917,20.07,131.69,131.59,1.3707]
[1726072514119,3.7971,131.68,131.63,3.7981]
[1726072514315,20.07,131.69,131.59,24.2372]
[1726072514617,20.07,131.69,131.59,22.8334]
[1726072514815,3.7974,131.66,131.62,3.7984]
[1726072515007,20.07,131.69,131.62,3.7984]
[1726072515418,20.07,131.67,131.59,22.8334]
[1726072515618,3.7978,131.65,131.61,3.7987]
[1726072515914,3.7978,131.65,131.59,22.8334]
[1726072516122,3.7978,131.65,131.61,3.7986]
[1726072516311,3.798,131.64,131.59,1.3707]
[1726072516712,3.798,131.64,131.61,3.7988]
[1726072516917,1.3596,131.7,131.6,20.07]
[1726072517215,20.07,131.74,131.64,20.07]
[1726072517417,348.05142892,131.77,131.6,21.4363]
[1726072517418,22.7418,131.76,131.66,20.07]
[1726072517916,23.8658,131.72,131.65,1.3772]
[1726072518622,3.7958,131.72,131.65,1.3772]
[1726072518819,20.07,131.74,131.69,3.7965]
[1726072518820,3.7955,131.73,131.69,3.7965]
[1726072519017,3.7955,131.73,131.65,21.4472]
[1726072519018,20.07,131.74,131.65,21.4472]
[1726072519532,3.7955,131.73,131.65,21.4472]
[1726072520124,20.07,131.72,131.66,3.7974]
[1726072520311,20.07,131.72,131.65,1.3772]
[1726072520511,3.7962,131.71,131.67,3.7971]
[1726072520716,6.4724,131.71,131.67,3.7971]
[1726072521618,6.4724,131.71,131.66,3.7973]
[1726072521818,3.7963,131.7,131.66,3.7973]
[1726072522324,6.4723,131.71,131.67,3.7971]
[1726072523223,2.6762,131.71,131.68,3.7968]
[1726072523420,20.07,131.74,131.65,21.4472]
[1726072523627,2.7006,131.75,131.65,22.8529]
[1726072523822,3.7959,131.72,131.68,3.7968]
[1726072524017,3.7068074,131.73,131.65,22.8529]
[1726072524630,20.07,131.71,131.61,1.3914]
[1726072524927,3.7972,131.67,131.63,3.7981]
[1726072525123,3.7972,131.67,131.61,1.3914]